bitfinex/quotes_SOLUSD_20250410
["timestamp","ask_amount","ask_price","bid_price","bid_amount"]
[1744299312171,61.28555375,110.67,110.6,81.2]
[1744299312485,0.063,110.68,110.52,61.28555375]
[1744299312486,31.6312,110.65,110.62,9.12]
[1744299312774,31.6312,110.65,110.57,61.28555375]
[1744299312966,9.0375,110.65,110.58,61.28555375]
[1744299313165,70.32305375,110.65,110.6,61.28555375]
[1744299313476,70.32305375,110.65,110.57,81.34216157]
[1744299313477,31.6312,110.65,110.58,61.28555375]
[1744299313688,61.28555375,110.64,110.6,9.12]
[1744299313988,61.28555375,110.61,110.53,211.77034431]
[1744299314276,61.28555375,110.64,110.57,0.03]
[1744299314451,70.32875375,110.59,110.57,0.03]
[1744299314656,61.28555375,110.58,110.57,0.03]
[1744299315755,70.32875375,110.59,110.57,0.03]
[1744299316181,61.28555375,110.58,110.57,0.03]
[1744299316573,131.6143075,110.58,110.57,0.03]
[1744299318284,9.0432,110.58,110.57,0.03]
[1744299318462,70.32875375,110.58,110.57,0.03]
[1744299319568,154.2223075,110.58,110.5,81.23]
[1744299319765,26.0,110.55,110.5,81.23]
[1744299320065,37.9484,110.58,110.51,61.28555375]
[1744299320266,61.28555375,110.54,110.5,142.51555375]
[1744299320473,99.23395375,110.58,110.5,0.03]
[1744299320474,61.28555375,110.53,110.5,0.03]
[1744299320674,61.28555375,110.51,110.5,0.03]
[1744299320876,61.28555375,110.52,110.5,0.03]
[1744299321080,18.64964886,110.57,110.5,0.03]
[1744299321283,61.28555375,110.54,110.5,0.03]
[1744299321487,9.0473,110.53,110.5,0.03]
[1744299321989,70.33285375,110.53,110.5,0.03]
[1744299322190,61.28555375,110.54,110.5,61.31555375]
[1744299322401,61.28555375,110.55,110.5,61.31555375]
[1744299322696,61.28555375,110.55,110.51,61.28555375]
[1744299323195,70.33075375,110.56,110.52,61.28555375]
[1744299323579,61.28555375,110.54,110.5,0.03]
[1744299323776,61.28555375,110.53,110.5,0.03]
[1744299323981,61.28555375,110.51,110.5,0.03]
[1744299324374,61.28555375,110.52,110.5,0.03]
[1744299324578,61.28555375,110.51,110.5,0.03]
[1744299324984,76.8816,110.56,110.5,0.03]
[1744299325196,61.28555375,110.51,110.5,0.03]
[1744299325579,26.0,110.53,110.5,0.03]
[1744299325580,70.33365375,110.52,110.5,0.03]
[1744299325886,96.33315375,110.53,110.5,0.03]
[1744299326192,61.28555375,110.53,110.5,0.03]
[1744299326387,61.28555375,110.51,110.5,0.03]
[1744299326586,31.6658,110.53,110.5,0.03]
[1744299326774,61.28555375,110.51,110.5,0.03]
[1744299327381,31.6658,110.53,110.5,0.03]
[1744299327597,61.28555375,110.51,110.5,0.03]
[1744299327783,70.33445375,110.51,110.5,0.03]
[1744299327985,22.6151,110.55,110.5,0.03]
[1744299328184,61.28555375,110.52,110.5,0.03]
[1744299328389,31.6607,110.55,110.5,0.03]
[1744299328574,61.28555375,110.53,110.5,0.03]
[1744299328777,31.6607,110.55,110.5,0.03]
[1744299328983,61.28555375,110.53,110.5,0.03]
[1744299329194,31.6607,110.55,110.5,0.03]
[1744299329397,61.28555375,110.52,110.5,0.03]
[1744299329590,70.33445375,110.51,110.5,0.03]
[1744299330681,70.33445375,110.51,110.45,0.03]
[1744299330682,145.93735375,110.51,110.45,0.03]
[1744299331184,61.28555375,110.48,110.45,0.03]
[1744299331489,39.4071,110.51,110.45,0.03]
[1744299331681,40.92354507,110.46,110.45,0.03]
[1744299332391,81.84709014,110.46,110.45,0.03]
[1744299332898,81.84709014,110.46,110.38,90.2894]
[1744299333097,40.92354507,110.47,110.42,40.92354507]
[1744299333277,26.0,110.48,110.43,61.38679853]
[1744299333483,87.38679853,110.48,110.44,61.38679853]
[1744299333683,28.849,110.51,110.45,61.38679853]
[1744299333883,61.38679853,110.49,110.45,61.38679853]
[1744299334090,6.2267,110.51,110.46,61.38679853]
[1744299334412,61.38679853,110.5,110.46,61.38679853]
[1744299334882,61.38679853,110.5,110.45,142.58679853]
[1744299335199,61.38679853,110.48,110.45,81.2]
[1744299335583,93.05519853,110.52,110.45,142.58679853]
[1744299335799,61.38679853,110.49,110.45,151.64029853]
[1744299336014,93.05519853,110.52,110.45,90.2535]
[1744299336309,61.38679853,110.47,110.43,61.38679853]
[1744299337102,61.38679853,110.48,110.44,61.38679853]
[1744299337312,61.38679853,110.49,110.44,61.38679853]
[1744299337627,61.38679853,110.49,110.45,70.44039853]
[1744299338099,9.0473,110.53,110.45,70.44039853]
[1744299338314,61.38679853,110.52,110.47,61.38679853]
[1744299338600,9.0468,110.54,110.49,61.38679853]
[1744299338781,61.38679853,110.54,110.5,61.38679853]
[1744299339103,38.1169,110.55,110.47,81.2]
[1744299339295,26.0,110.52,110.47,81.2]
[1744299339501,61.38679853,110.51,110.47,81.2]
[1744299339795,9.0489,110.51,110.44,70.44139853]
[1744299339993,61.38679853,110.47,110.44,9.0546]
[1744299340197,61.38679853,110.46,110.43,81.2]
[1744299340784,32.0789,110.47,110.4,0.03]
[1744299340990,61.38679853,110.45,110.4,70.47429853]
[1744299341174,26.0,110.48,110.42,61.38679853]
[1744299341379,61.38679853,110.47,110.43,61.38679853]
[1744299341579,61.38679853,110.47,110.43,70.44189853]
[1744299341798,61.38679853,110.47,110.42,70.44269853]
[1744299341998,61.38679853,110.47,110.42,9.0559]
[1744299342294,61.38679853,110.45,110.41,9.0571]
[1744299342501,61.38679853,110.46,110.41,70.44389853]
[1744299342885,61.38679853,110.46,110.42,61.38679853]
[1744299343081,9.0519,110.48,110.42,61.38679853]
[1744299343493,61.38679853,110.46,110.42,61.38679853]
[1744299343680,70.43999853,110.46,110.41,9.0571]
[1744299343894,61.38679853,110.45,110.41,70.44389853]
[1744299344296,61.38679853,110.45,110.41,9.0571]
[1744299344495,61.38679853,110.44,110.41,9.0571]
[1744299344698,61.38679853,110.44,110.4,90.2875]
[1744299344883,9.0532,110.46,110.4,151.67429853]
[1744299345083,61.38679853,110.44,110.4,151.67429853]
[1744299345284,61.38679853,110.44,110.4,90.2875]
[1744299345487,61.38679853,110.44,110.4,151.67429853]
[1744299345898,61.38679853,110.44,110.4,90.2875]
[1744299346079,9.054,110.45,110.4,151.67429853]
[1744299346281,61.38679853,110.44,110.4,151.67429853]
[1744299346481,61.38679853,110.44,110.4,90.2875]
[1744299346680,31.6884,110.45,110.4,0.03]
[1744299346922,61.38679853,110.41,110.4,0.03]
[1744299347190,61.38679853,110.43,110.4,0.03]
[1744299347403,9.0538,110.45,110.4,0.03]
[1744299347697,111.22143615,110.56,110.44,61.38679853]
[1744299347698,9.0497,110.5,110.44,61.38679853]
[1744299347900,61.38679853,110.49,110.41,31.6999]
[1744299348103,61.38679853,110.46,110.42,61.38679853]
[1744299348401,61.38679853,110.47,110.43,61.38679853]
[1744299348601,31.6741,110.5,110.42,81.2]
[1744299348784,61.38679853,110.47,110.43,61.38679853]
[1744299349504,61.38679853,110.47,110.42,142.58679853]
[1744299349712,9.0497,110.5,110.44,70.44139853]
[1744299349888,70.43649853,110.5,110.45,61.38679853]
[1744299350292,70.43649853,110.5,110.44,9.0546]
[1744299350491,61.38679853,110.49,110.44,9.0546]
[1744299350795,9.0497,110.5,110.44,9.0546]
[1744299350996,9.0493,110.51,110.44,9.0546]
[1744299351195,70.43529853,110.52,110.47,61.38679853]
[1744299351907,61.38679853,110.5,110.45,9.0538]
[1744299352108,61.38679853,110.49,110.45,9.0538]
[1744299352418,61.38679853,110.5,110.45,70.44059853]
[1744299352816,9.0473,110.53,110.48,61.38679853]
[1744299353028,61.38679853,110.49,110.42,9.0563]
[1744299353317,61.38679853,110.48,110.42,9.0563]
[1744299353486,61.38679853,110.47,110.42,70.44309853]
[1744299353685,40.93179017,110.47,110.42,49.98809017]
[1744299353886,22.6249,110.5,110.42,49.98809017]
[1744299354198,40.93179017,110.47,110.42,49.98809017]
[1744299354405,22.6249,110.5,110.43,40.93179017]
[1744299354695,9.0505,110.49,110.44,40.93179017]
[1744299355005,40.93179017,110.48,110.44,40.93179017]
[1744299355189,40.93179017,110.48,110.43,40.93179017]
[1744299355516,40.93179017,110.47,110.42,40.93179017]
[1744299355725,40.93179017,110.45,110.41,49.98849017]
[1744299356019,40.93179017,110.44,110.4,81.23]
[1744299356220,49.98559017,110.45,110.4,122.16179017]
[1744299356630,49.98559017,110.45,110.4,81.23]
[1744299356631,40.93179017,110.44,110.4,81.23]
[1744299356929,9.0514,110.48,110.43,40.93179017]
[1744299357105,1.5259,110.51,110.44,40.93179017]
[1744299357421,40.93179017,110.49,110.44,40.93179017]
[1744299357607,49.98149017,110.5,110.45,40.93179017]
[1744299357806,40.93179017,110.48,110.44,40.93179017]
[1744299358010,49.98349017,110.48,110.42,9.0563]
[1744299358208,9.0517,110.48,110.43,40.93179017]
[1744299358409,40.93179017,110.47,110.42,49.98809017]
[1744299358826,40.93179017,110.43,110.4,0.03]
[1744299359225,40.93179017,110.45,110.4,40.96179017]
[1744299359530,40.93179017,110.45,110.4,37.38624635]
[1744299359828,40.93179017,110.43,110.38,40.96179017]
[1744299360138,49.98739017,110.43,110.38,40.96179017]
[1744299360627,9.0556,110.43,110.38,40.96179017]
[1744299360925,9.0556,110.43,110.39,40.93179017]
[1744299361227,49.98679017,110.44,110.39,40.93179017]
[1744299361438,22.6315,110.47,110.42,40.93179017]
[1744299361606,63.56329017,110.47,110.43,40.93179017]
[1744299361807,9.0534,110.46,110.43,40.93179017]
[1744299362003,49.98519017,110.46,110.39,89.51292314]
[1744299362223,49.98519017,110.46,110.42,40.93179017]
[1744299362417,9.0534,110.46,110.42,40.93179017]
[1744299362615,63.61969017,110.5,110.45,40.93179017]
[1744299362808,63.61969017,110.5,110.41,18.64964886]
[1744299363015,22.6879,110.5,110.42,0.28432314]
[1744299363213,63.61969017,110.5,110.45,40.93179017]
[1744299363415,40.93179017,110.49,110.42,0.28432314]
[1744299363612,40.93179017,110.49,110.45,40.93179017]
[1744299363920,9.0509,110.49,110.46,40.93179017]
[1744299364229,11.45188751,110.49,110.47,40.93179017]
[1744299364735,47.08499017,110.48,110.41,40.93179017]
[1744299364913,6.1532,110.48,110.41,40.93179017]
[1744299365119,40.93179017,110.45,110.38,90.2895]
[1744299365329,25.087172,110.48,110.38,81.23]
[1744299365636,18.64964886,110.45,110.38,0.03]
[1744299365831,40.93179017,110.41,110.38,0.03]
[1744299366433,40.93179017,110.42,110.38,0.03]
[1744299366617,9.0555,110.43,110.38,0.03]
[1744299366618,40.93179017,110.41,110.38,0.03]
[1744299366811,40.93179017,110.4,110.38,0.03]
[1744299367534,61.49553164,110.39,110.38,0.03]
[1744299367909,9.0587,110.39,110.38,0.03]
[1744299368111,6.4668,110.42,110.38,0.03]
[1744299368112,70.55373164,110.4,110.38,0.03]
[1744299368325,61.49553164,110.42,110.38,0.03]
[1744299368627,61.49553164,110.39,110.38,0.03]
[1744299368931,31.6942,110.43,110.38,0.03]
[1744299369231,80.1451805,110.39,110.38,0.0001]
[1744299369528,88.14530364,110.39,110.38,0.0001]
[1744299369731,0.28432314,110.38,110.36,0.0001]
[1744299370030,89.2055805,110.37,110.36,0.0001]
[1744299370329,70.55593164,110.37,110.36,0.0001]
[1744299370519,9.0604,110.37,110.36,0.0001]
[1744299370726,70.55593164,110.37,110.36,0.0001]
[1744299371113,70.55593164,110.37,110.32,2.46380933]
[1744299371312,61.49553164,110.34,110.32,2.46380933]
[1744299371509,61.49553164,110.33,110.32,2.46380933]
[1744299371715,31.7114,110.37,110.32,2.46380933]
[1744299372037,6.1781,110.39,110.33,61.49553164]
[1744299372208,9.0596,110.38,110.32,2.46380933]
[1744299372412,61.49553164,110.37,110.32,63.95934097]
[1744299372644,61.49553164,110.36,110.32,2.46380933]
[1744299372933,61.49553164,110.36,110.32,63.95934097]
[1744299373327,61.49553164,110.35,110.32,2.46380933]
[1744299373526,61.49553164,110.34,110.32,2.46380933]
[1744299373722,61.49553164,110.33,110.32,2.46380933]
[1744299373928,9.0637,110.33,110.32,2.46380933]
[1744299374127,70.55923164,110.33,110.32,2.46380933]
[1744299375224,82.01111915,110.33,110.32,2.46380933]
[1744299375827,11.45188751,110.33,110.32,2.46380933]
[1744299376035,20.51558751,110.33,110.32,2.46380933]
[1744299376337,82.01111915,110.33,110.32,2.46380933]
[1744299377035,82.01111915,110.33,110.32,63.95934097]
[1744299377036,11.45188751,110.33,110.32,63.95934097]
[1744299377435,11.45188751,110.33,110.32,2.46380933]
[1744299377828,11.45188751,110.33,110.32,73.02384097]
[1744299378527,11.45188751,110.33,110.32,18.10206997]
[1744299378732,8.751e-05,110.33,110.32,118.23604197]
[1744299379240,8.751e-05,110.33,110.32,99.58639311]
[1744299379422,8.751e-05,110.33,110.32,99.30206997]
[1744299379940,8.751e-05,110.33,110.32,90.2645]
[1744299380142,8.751e-05,110.33,110.32,151.76003164]
[1744299380826,8.751e-05,110.33,110.32,152.04435478]
[1744299381340,8.751e-05,110.33,110.32,151.76003164]
[1744299381718,8.751e-05,110.33,110.31,50.0]
[1744299381918,61.49561915,110.33,110.31,50.0]
[1744299382142,70.55931915,110.33,110.31,50.0]
[1744299382561,61.49553164,110.32,110.31,50.0]
[1744299383330,9.06378751,110.33,110.31,50.0]
[1744299383733,70.55931915,110.33,110.31,50.0]
[1744299384036,61.49553164,110.32,110.31,50.0]
[1744299385137,68.86721915,110.32,110.27,0.03]
[1744299385455,61.49553164,110.28,110.27,0.03]
[1744299386126,70.56333164,110.28,110.27,0.03]
[1744299387267,157.25293528,110.28,110.27,0.0001]
[1744299387428,0.28432314,110.27,110.19,9.075]
[1744299387631,61.49553164,110.22,110.19,9.075]
[1744299387829,26.0,110.25,110.18,70.57093164]
[1744299388034,61.49553164,110.22,110.18,61.49553164]
[1744299388230,61.49553164,110.21,110.17,9.0765]
[1744299388737,44.64964886,110.25,110.13,9.0801]
[1744299388738,61.49553164,110.19,110.13,9.0801]
[1744299388935,61.49553164,110.18,110.14,61.49553164]
[1744299389162,0.28432314,110.24,110.13,31.7805]
[1744299389163,9.0736,110.21,110.13,31.7805]
[1744299389360,9.0719,110.23,110.13,112.9805]
[1744299389564,9.0719,110.23,110.17,61.49553164]
[1744299389866,61.49553164,110.19,110.13,112.9805]
[1744299390044,61.49553164,110.18,110.14,61.49553164]
[1744299390360,61.49553164,110.16,110.12,9.0807]
[1744299390560,61.49553164,110.15,110.11,61.49553164]
[1744299390761,61.49553164,110.17,110.13,61.49553164]
[1744299391131,61.49553164,110.17,110.1,93.28473164]
[1744299391439,70.57253164,110.17,110.12,61.49553164]
[1744299391760,61.49553164,110.18,110.13,61.49553164]
[1744299391970,45.3597,110.23,110.1,93.28473164]
[1744299391971,6.0635,110.25,110.15,61.49553164]
[1744299392128,18.64964886,110.24,110.1,174.98473164]
[1744299392462,61.49553164,110.18,110.14,61.49553164]
[1744299392685,18.64964886,110.24,110.14,61.49553164]
[1744299392831,18.64964886,110.24,110.16,61.49553164]
[1744299393031,61.49553164,110.21,110.16,61.49553164]
[1744299393652,50.39844886,110.24,110.16,61.49553164]
[1744299393963,61.49553164,110.19,110.13,31.7805]
[1744299394170,61.49553164,110.16,110.11,9.0813]
[1744299394351,18.933972,110.21,110.11,9.0813]
[1744299394557,18.933972,110.21,110.14,61.49553164]
[1744299394766,61.49553164,110.18,110.14,61.49553164]
[1744299395274,61.49553164,110.16,110.09,9.22556157]
[1744299395572,61.49553164,110.17,110.12,61.49553164]
[1744299395745,61.49553164,110.15,110.09,9.0834]
[1744299395949,61.49553164,110.15,110.09,31.7914]
[1744299396252,26.0,110.18,110.12,61.49553164]
[1744299396472,61.49553164,110.16,110.11,61.49553164]
[1744299396787,1.5389,110.19,110.09,31.7914]
[1744299396946,1.5389,110.19,110.08,9.0843]
[1744299396947,61.49553164,110.16,110.08,9.0843]
[1744299397274,61.49553164,110.15,110.1,61.49553164]
[1744299397569,61.49553164,110.16,110.08,31.795]
[1744299397765,61.49553164,110.16,110.11,61.49553164]
[1744299397945,61.49553164,110.16,110.08,31.825]
[1744299398148,61.49553164,110.16,110.11,61.49553164]
[1744299398577,61.49553164,110.13,110.08,9.1143]
[1744299398779,61.49553164,110.13,110.08,70.60983164]
[1744299398954,70.57543164,110.14,110.09,61.49553164]
[1744299399366,70.57543164,110.14,110.08,9.1143]
[1744299399875,70.57413164,110.15,110.1,61.49553164]
[1744299400667,61.49553164,110.14,110.1,61.49553164]
[1744299400867,22.6934,110.17,110.1,70.57743164]
[1744299400868,31.7702,110.17,110.1,70.57743164]
[1744299401061,9.0768,110.17,110.13,61.49553164]
[1744299401271,70.57233164,110.17,110.12,61.49553164]
[1744299401574,61.49553164,110.16,110.1,31.7885]
[1744299401871,61.49553164,110.14,110.09,9.0831]
[1744299402047,61.49553164,110.13,110.08,61.52553164]
[1744299402245,61.49553164,110.12,110.08,0.03]
[1744299402466,61.49553164,110.13,110.08,70.60943164]
[1744299402669,50.56081043,110.17,110.08,9.1139]
[1744299402860,61.49553164,110.14,110.09,61.49553164]
[1744299403059,70.57523164,110.14,110.09,70.57853164]
[1744299403256,31.778,110.14,110.08,0.03]
[1744299403456,41.19824927,110.11,110.08,0.03]
[1744299403668,31.778,110.14,110.08,41.22824927]
[1744299403974,41.19824927,110.13,110.09,41.19824927]
[1744299404177,41.19824927,110.13,110.08,41.22824927]
[1744299404382,41.19824927,110.12,110.08,41.22824927]
[1744299404571,9.0797,110.14,110.09,41.19824927]
[1744299404767,41.19824927,110.13,110.08,41.22824927]
[1744299404967,9.0797,110.14,110.08,41.22824927]
[1744299405193,50.27874927,110.13,110.08,41.22824927]
[1744299405479,50.27824927,110.14,110.09,41.19824927]
[1744299405654,9.08,110.14,110.08,0.03]
[1744299405854,9.0785,110.15,110.11,41.19824927]
[1744299406146,50.27674927,110.15,110.08,0.03]
[1744299406371,9.0785,110.15,110.11,41.19824927]
[1744299406760,9.0785,110.15,110.08,9.1142]
[1744299406761,50.27674927,110.15,110.08,0.03]
[1744299406961,41.19824927,110.14,110.1,41.19824927]
[1744299407183,9.0789,110.15,110.11,41.19824927]
[1744299407369,6.1613,110.18,110.12,41.19824927]
[1744299407571,41.19824927,110.17,110.12,41.19824927]
[1744299407875,9.0768,110.17,110.11,41.19824927]
[1744299408272,41.19824927,110.14,110.08,0.03]
[1744299408673,41.19824927,110.16,110.08,0.03]
[1744299408873,41.19824927,110.16,110.08,41.22824927]
[1744299408874,41.19824927,110.13,110.08,41.22824927]
[1744299409787,41.19824927,110.12,110.08,0.03]
[1744299410160,41.19824927,110.13,110.08,0.03]
[1744299410491,77.1674,110.15,110.08,41.22824927]
[1744299410680,77.1674,110.15,110.1,19.43]
[1744299410974,41.19824927,110.13,110.1,19.43]
[1744299411178,9.0801,110.13,110.1,19.43]
[1744299411563,9.0801,110.13,110.1,60.62824927]
[1744299411770,9.0801,110.13,110.1,19.43]
[1744299411970,31.7805,110.13,110.1,19.43]
[1744299412162,41.19824927,110.12,110.1,19.43]
[1744299412363,31.7805,110.13,110.1,19.43]
[1744299412968,72.97874927,110.13,110.1,19.43]
[1744299413172,9.0818,110.11,110.1,19.43]
[1744299414873,50.28004927,110.11,110.1,19.43]
[1744299415069,9.0818,110.11,110.1,19.43]
[1744299415275,79.05604927,110.11,110.08,0.03]
[1744299415469,41.19824927,110.09,110.08,0.03]
[1744299416675,37.8578,110.11,110.08,0.03]
[1744299416982,41.19824927,110.1,110.08,0.03]
[1744299417159,50.28164927,110.09,110.08,0.03]
[1744299417783,9.0834,110.09,110.08,0.03]
[1744299418183,50.28164927,110.09,110.08,0.03]
[1744299418572,9.0834,110.09,110.08,0.03]
[1744299418773,50.28164927,110.09,110.08,0.03]
[1744299419388,81.19234927,110.09,110.01,1.00004575]
[1744299419596,41.19824927,110.03,110.01,1.00004575]
[1744299419764,41.19824927,110.05,110.01,1.00004575]
[1744299420087,39.9941,110.09,110.02,41.19824927]
[1744299420310,41.19824927,110.04,110.01,1.00004575]
[1744299420666,41.19824927,110.03,110.01,1.00004575]
[1744299420868,41.19824927,110.04,110.01,1.00004575]
[1744299421064,41.19824927,110.03,110.01,1.00004575]
[1744299421289,9.0876,110.04,110.01,1.00004575]
[1744299421593,50.28584927,110.04,110.01,1.00004575]
[1744299421891,9.0876,110.04,110.01,1.00004575]
[1744299422787,9.087,110.05,110.01,42.19829502]
[1744299422989,9.087,110.05,110.01,1.00004575]
[1744299423302,50.28524927,110.05,110.01,42.19829502]
[1744299423598,9.087,110.05,110.01,1.00004575]
[1744299423766,9.087,110.05,110.01,42.19829502]
[1744299424276,9.087,110.05,110.01,1.00004575]
[1744299424477,9.0863,110.06,110.01,1.00004575]
[1744299424681,9.0863,110.06,110.02,41.19824927]
[1744299424884,50.28454927,110.06,110.01,1.00004575]
[1744299425075,31.8011,110.06,110.01,42.19829502]
[1744299425276,50.28584927,110.04,110.01,1.00004575]
[1744299425480,9.0871,110.05,110.0,77.04199215]
[1744299425678,41.19824927,110.04,110.0,26.75304288]
[1744299425896,9.0871,110.05,110.0,26.75304288]
[1744299426078,9.0871,110.05,110.0,67.95129215]
[1744299426480,41.19824927,110.04,110.0,67.95129215]
[1744299426682,9.0871,110.05,110.0,67.95129215]
[1744299426683,41.19824927,110.03,110.0,26.75304288]
[1744299426894,41.19824927,110.02,110.0,26.75304288]
[1744299427399,41.19824927,110.01,110.0,26.75304288]
[1744299427709,50.28794927,110.02,110.0,26.75304288]
[1744299428196,41.19824927,110.01,110.0,26.75304288]
[1744299428395,50.28794927,110.02,110.0,26.75304288]
[1744299428693,9.0897,110.02,110.0,26.75304288]
[1744299428870,41.19824927,110.01,110.0,26.75304288]
[1744299429273,9.0909,110.0,109.96,0.03]
[1744299429776,41.19824927,109.97,109.96,0.03]
[1744299430384,31.8181,110.0,109.96,0.03]
[1744299430591,41.19824927,109.98,109.96,0.03]
[1744299431094,31.8181,110.0,109.96,0.03]
[1744299431281,41.19824927,109.97,109.96,0.03]
[1744299431491,41.19824927,109.99,109.96,0.03]
[1744299431806,41.19824927,109.97,109.96,0.03]
[1744299431996,41.19824927,109.98,109.96,0.03]
[1744299432198,18.64964886,110.0,109.96,0.03]
[1744299432403,41.19824927,109.97,109.96,0.03]
[1744299433418,50.29154927,109.97,109.96,0.03]
[1744299435393,18.64964886,109.95,109.9,0.92]
[1744299435593,41.19824927,109.92,109.9,0.92]
[1744299435818,4.48668748,109.95,109.9,0.92]
[1744299436022,41.19824927,109.91,109.9,0.92]
[1744299436201,90.7684052,109.97,109.9,0.92]
[1744299436202,38.037,109.97,109.9,0.92]
[1744299436399,41.19824927,109.91,109.9,0.92]
[1744299436796,59.84789813,109.91,109.89,1.7932766]
[1744299437105,41.19824927,109.92,109.82,7.605]
[1744299437106,9.1,109.89,109.82,7.605]
[1744299437310,31.85,109.89,109.8,50.30564927]
[1744299437508,41.19824927,109.86,109.79,15.3204]
[1744299437706,41.19824927,109.84,109.79,15.3204]
[1744299437910,9.1,109.89,109.8,0.93]
[1744299438095,18.64964886,109.88,109.8,0.93]
[1744299438299,31.85,109.89,109.81,41.19824927]
[1744299438520,9.1,109.89,109.8,42.12824927]
[1744299438919,59.84789813,109.92,109.81,0.28432314]
[1744299439125,9.0983,109.91,109.82,9.1058]
[1744299439623,41.19824927,109.89,109.84,41.19824927]
[1744299439824,9.0978,109.92,109.82,9.1058]
[1744299440032,91.68949813,109.92,109.82,9.1058]
[1744299440239,18.64964886,109.9,109.82,9.1058]
[1744299440530,41.19824927,109.85,109.81,9.1063]
[1744299440713,12.14589159,109.91,109.8,65.03861084]
[1744299440714,41.19824927,109.86,109.8,10.0374]
[1744299441027,9.1,109.89,109.8,51.23564927]
[1744299441234,41.19824927,109.85,109.8,10.0374]
[1744299441529,9.1,109.89,109.81,41.19824927]
[1744299441926,41.19824927,109.85,109.8,32.806]
[1744299442105,41.19824927,109.85,109.81,0.28432314]
[1744299442306,41.19824927,109.85,109.8,32.806]
[1744299442499,9.1,109.89,109.8,74.00424927]
[1744299442703,31.8486,109.9,109.8,32.806]
[1744299442927,31.8486,109.9,109.8,10.0374]
[1744299443098,41.19824927,109.84,109.8,10.0374]
[1744299443295,41.19824927,109.85,109.8,10.0374]
[1744299443519,43.99449159,109.9,109.8,10.0374]
[1744299443721,41.19824927,109.85,109.8,10.0374]
[1744299444034,50.06739159,109.9,109.8,10.0374]
[1744299444245,41.19824927,109.84,109.8,51.23564927]
[1744299444541,41.19824927,109.83,109.8,0.93]
[1744299444712,9.1046,109.84,109.8,0.93]
[1744299444913,41.19824927,109.84,109.8,10.0373]
[1744299445754,22.7557,109.87,109.8,10.0373]
[1744299445914,50.30064927,109.86,109.81,41.19824927]
[1744299446448,41.19824927,109.85,109.8,51.23554927]
[1744299446651,41.19824927,109.86,109.81,41.19824927]
[1744299446875,41.19824927,109.85,109.8,10.0373]
[1744299447025,31.8541,109.88,109.82,41.19824927]
[1744299447026,41.19824927,109.86,109.82,41.19824927]
[1744299447356,9.1008,109.88,109.82,41.19824927]
[1744299447651,41.19824927,109.88,109.83,41.19824927]
[1744299447835,41.19824927,109.87,109.82,41.19824927]
[1744299448033,41.19824927,109.85,109.8,32.8059]
[1744299448228,41.19824927,109.86,109.8,32.8059]
[1744299448552,41.19824927,109.85,109.81,41.19824927]
[1744299448850,41.19824927,109.85,109.81,9.1065]
[1744299449056,50.30134927,109.86,109.8,0.93]
[1744299449227,41.19824927,109.82,109.8,0.93]
[1744299449424,82.09639465,109.86,109.8,0.93]
[1744299449653,88.16619465,109.86,109.8,0.93]
[1744299450033,41.19824927,109.81,109.8,0.93]
[1744299450232,41.19824927,109.81,109.76,2.93370933]
[1744299450233,82.39649854,109.81,109.76,2.93370933]
[1744299450533,8.91349194,109.82,109.76,2.93370933]
[1744299450737,41.19824927,109.77,109.76,2.93370933]
[1744299450939,50.30814927,109.77,109.76,2.93370933]
[1744299451549,9.1099,109.77,109.76,2.93370933]
[1744299451937,9.1074,109.8,109.76,2.93370933]
[1744299452755,31.876,109.8,109.76,2.93370933]
[1744299452940,41.19824927,109.77,109.76,2.93370933]
[1744299453137,67.19824927,109.77,109.76,2.93370933]
[1744299453433,67.19824927,109.77,109.69,1.6622]
[1744299453651,41.19824927,109.74,109.69,42.86044927]
[1744299453822,41.19824927,109.71,109.69,1.6622]
[1744299454022,6.2028,109.79,109.69,1.6622]
[1744299454023,41.19824927,109.73,109.69,1.6622]
[1744299454334,41.19824927,109.7,109.67,6.4306]
[1744299454539,12.14589159,109.76,109.67,6.4306]
[1744299454867,41.19824927,109.72,109.67,56.74704927]
[1744299455038,41.19824927,109.72,109.68,41.19824927]
[1744299455238,34.92409159,109.76,109.67,15.5488]
[1744299455424,9.1116,109.75,109.67,15.5488]
[1744299455629,41.19824927,109.72,109.67,15.5488]